bitfinex/quotes_BTCUSD_20240810
["timestamp","ask_amount","ask_price","bid_price","bid_amount"]
[1723318207476,0.002832,61131.0,61130.0,2.18663541]
[1723318207675,0.002832,61131.0,61130.0,2.19863541]
[1723318208470,0.002832,61131.0,61130.0,2.21863541]
[1723318208727,0.0804,61153.0,61152.0,0.163526]
[1723318208946,0.0613,61157.0,61156.0,0.245274]
[1723318209227,0.000832,61161.0,61156.0,0.245274]
[1723318209228,0.062132,61161.0,61160.0,0.081752]
[1723318209432,0.142532,61161.0,61160.0,0.38108299]
[1723318209979,0.142532,61161.0,61160.0,0.21757799]
[1723318210514,0.142532,61161.0,61160.0,0.13582599]
[1723318211123,0.152532,61161.0,61160.0,0.13682599]
[1723318211662,0.163532,61161.0,61160.0,0.13782599]
[1723318212766,0.163532,61161.0,61160.0,0.21957799]
[1723318212905,0.163532,61161.0,61160.0,0.38308299]
[1723318213432,0.163532,61161.0,61160.0,0.247257]
[1723318213626,0.163532,61161.0,61160.0,0.54655566]
[1723318213853,0.021832,61161.0,61160.0,0.54655566]
[1723318214012,0.021832,61161.0,61160.0,0.54654908]
[1723318216602,0.021832,61161.0,61160.0,0.38304408]
[1723318216911,0.021832,61161.0,61160.0,0.38304419]
[1723318217291,0.104232,61161.0,61160.0,0.38304419]
[1723318217696,0.164232,61161.0,61160.0,0.13778719]
[1723318218504,0.164232,61161.0,61160.0,0.083752]
[1723318218708,0.104232,61161.0,61160.0,0.38304982]
[1723318218961,0.104232,61161.0,61160.0,0.21954482]
[1723318220453,0.104232,61161.0,61160.0,0.083752]
[1723318220651,0.104232,61161.0,61160.0,0.21954506]
[1723318221826,0.104232,61161.0,61160.0,0.083752]
[1723318223292,0.104232,61161.0,61160.0,0.21954529]
[1723318223916,0.104232,61161.0,61160.0,0.38305028]
[1723318224283,0.104232,61161.0,61160.0,0.247257]
[1723318224480,0.104232,61161.0,61160.0,0.38304951]
[1723318227315,0.104232,61161.0,61160.0,0.38304991]
[1723318230543,0.021832,61161.0,61160.0,0.44564991]
[1723318230720,0.021832,61161.0,61160.0,0.93647483]
[1723318231420,0.011832,61161.0,61160.0,0.93747483]
[1723318231604,0.011832,61161.0,61160.0,1.02067483]
[1723318231804,0.011832,61161.0,61160.0,1.01866459]
[1723318231805,0.015832,61161.0,61160.0,1.01866459]
[1723318232451,0.005832,61161.0,61160.0,1.02666459]
[1723318232661,0.005832,61161.0,61160.0,1.10696459]
[1723318232805,0.009832,61161.0,61160.0,1.10696459]
[1723318233188,0.005832,61161.0,61160.0,0.97118192]
[1723318233405,0.005832,61161.0,61160.0,0.97918192]
[1723318233608,0.006832,61161.0,61160.0,0.97918192]
[1723318235391,0.006832,61161.0,61160.0,1.11495583]
[1723318236155,0.006832,61161.0,61160.0,1.18284291]
[1723318236577,0.006832,61161.0,61160.0,0.97918192]
[1723318237746,0.006832,61161.0,61160.0,1.35647778]
[1723318239230,0.152132,61161.0,61160.0,0.15277414]
[1723318239369,0.152132,61161.0,61160.0,0.23452614]
[1723318239572,0.152132,61161.0,61160.0,0.15277414]
[1723318239982,0.151132,61161.0,61160.0,0.14477414]
[1723318240174,0.146132,61161.0,61160.0,0.13577414]
[1723318240436,0.146132,61161.0,61160.0,0.13677414]
[1723318240797,0.227883,61161.0,61160.0,0.13677414]
[1723318241894,0.227883,61161.0,61160.0,0.138798]
[1723318242043,0.227883,61161.0,61160.0,0.137798]
[1723318242668,0.227883,61161.0,61160.0,0.139798]
[1723318243019,0.227883,61161.0,61160.0,0.137798]
[1723318243228,0.391385,61161.0,61160.0,0.139798]
[1723318243392,0.391385,61161.0,61160.0,0.004]
[1723318243393,0.818389,61161.0,61160.0,0.004]
[1723318243959,0.82801567,61161.0,61160.0,0.004]
[1723318244178,0.99183059,61161.0,61160.0,0.004]
[1723318244377,0.99183059,61161.0,61160.0,0.002]
[1723318245043,1.00183059,61161.0,61160.0,0.002]
[1723318245218,0.1453,61147.0,61143.0,0.081775]
[1723318245421,0.1453,61147.0,61144.0,0.1358277]
[1723318245635,0.1453,61147.0,61145.0,0.1358277]
[1723318245979,0.1453,61147.0,61146.0,0.1358277]
[1723318246195,0.1453,61147.0,61144.0,0.081773]
[1723318246405,0.1453,61147.0,61142.0,0.081776]
[1723318246556,0.1453,61147.0,61143.0,0.13583497]
[1723318246557,0.081771,61146.0,61143.0,0.13583497]
[1723318246754,0.081771,61146.0,61144.0,0.007]
[1723318246998,0.081771,61146.0,61145.0,0.006]
[1723318247499,0.081771,61146.0,61140.0,0.724935]
[1723318247500,0.081771,61146.0,61141.0,0.081778]
[1723318247704,0.081771,61146.0,61142.0,0.13583514]
[1723318247922,0.081771,61146.0,61141.0,0.081778]
[1723318248128,0.1453,61147.0,61142.0,0.081776]
[1723318248340,0.1453,61147.0,61143.0,0.081775]
[1723318248549,0.1463,61147.0,61144.0,0.007]
[1723318248706,0.1453,61147.0,61143.0,0.081775]
[1723318248914,0.1453,61147.0,61144.0,0.007]
[1723318248915,0.081,61147.0,61144.0,0.007]
[1723318249108,0.001,61146.0,61145.0,0.63697692]
[1723318249339,0.002,61146.0,61145.0,0.77280718]
[1723318249744,0.081,61158.0,61151.0,0.081763]
[1723318249921,0.081759,61155.0,61151.0,0.081763]
[1723318250706,0.163513,61157.0,61151.0,0.081763]
[1723318250707,0.081757,61157.0,61151.0,0.081763]
[1723318250919,0.081758,61156.0,61151.0,0.081763]
[1723318251665,0.162756,61158.0,61153.0,0.081761]
[1723318251868,0.162755,61158.0,61154.0,0.08176]
[1723318252242,0.004,61156.0,61153.0,0.081761]
[1723318252438,0.162755,61158.0,61153.0,0.081761]
[1723318252664,0.003,61155.0,61153.0,0.081761]
[1723318252864,0.003,61155.0,61154.0,0.08176]
[1723318253115,0.003,61155.0,61152.0,0.163526]
[1723318253271,0.262755,61158.0,61153.0,0.081761]
[1723318253453,0.004,61156.0,61155.0,0.081759]
[1723318253853,0.004,61156.0,61153.0,0.081761]
[1723318254096,0.008,61156.0,61153.0,0.081761]
[1723318254514,0.008,61156.0,61155.0,0.081759]
[1723318255285,0.004,61156.0,61155.0,0.081759]
[1723318255486,0.081,61158.0,61155.0,0.081759]
[1723318255688,0.081,61158.0,61157.0,0.081756]
[1723318255907,0.146884,61161.0,61160.0,0.245257]
[1723318255908,0.000832,61161.0,61160.0,0.245257]
[1723318256163,0.000832,61161.0,61160.0,0.71164313]
[1723318257081,0.000832,61161.0,61160.0,0.77594313]
[1723318257868,0.000832,61161.0,61160.0,0.93944813]
[1723318258449,0.001832,61161.0,61160.0,0.94642686]
[1723318258666,0.001832,61161.0,61160.0,0.94542686]
[1723318259039,0.002832,61161.0,61160.0,0.95342686]
[1723318259240,0.001832,61161.0,61160.0,0.94542686]
[1723318259492,0.000832,61161.0,61160.0,0.93942686]
[1723318259663,0.001832,61161.0,61160.0,0.94742686]
[1723318259870,0.001832,61161.0,61160.0,0.94642686]
[1723318260302,0.002832,61161.0,61160.0,0.95442686]
[1723318260478,0.001832,61161.0,61160.0,0.94742686]
[1723318261086,0.001832,61161.0,61160.0,0.81165154]
[1723318261314,0.001832,61161.0,61160.0,0.94742606]
[1723318261518,0.000832,61161.0,61160.0,0.93942606]
[1723318261722,0.001832,61161.0,61160.0,0.94742591]
[1723318261918,0.001832,61161.0,61160.0,0.94642591]
[1723318262329,0.001832,61161.0,61160.0,0.94615629]
[1723318262536,0.000832,61161.0,61160.0,0.38103137]
[1723318262779,0.001832,61161.0,61160.0,0.39003137]
[1723318262975,0.001832,61161.0,61160.0,0.254257]
[1723318263280,0.002832,61161.0,61160.0,0.40004419]
[1723318263479,0.001832,61161.0,61160.0,0.39104419]
[1723318263982,0.002832,61161.0,61160.0,0.40004419]
[1723318264565,0.002832,61161.0,61160.0,0.4000466]
[1723318264697,0.001832,61161.0,61160.0,0.3900466]
[1723318265262,0.042032,61163.0,61160.0,0.100752]
[1723318266115,0.042032,61163.0,61161.0,0.08175]
[1723318266457,0.043032,61163.0,61161.0,0.08175]
[1723318266656,0.001,61163.0,61161.0,0.08175]
[1723318266883,0.002,61163.0,61161.0,0.08175]
[1723318267121,0.081744,61166.0,61161.0,0.08175]
[1723318267524,0.081746,61165.0,61161.0,0.08175]
[1723318268437,0.001,61163.0,61161.0,0.08975]
[1723318268580,0.16432,61167.0,61159.0,0.163506]
[1723318268581,0.000832,61167.0,61162.0,0.08175]
[1723318268777,0.001,61163.0,61162.0,0.08175]
[1723318269613,0.000832,61167.0,61162.0,0.08175]
[1723318269813,0.000832,61167.0,61163.0,0.146048]
[1723318270012,0.000832,61167.0,61165.0,0.081745]
[1723318270449,0.000832,61167.0,61163.0,0.0643]
[1723318270611,0.000832,61167.0,61165.0,0.081745]
[1723318270835,0.000832,61167.0,61164.0,0.081746]
[1723318271869,0.002832,61167.0,61164.0,0.081746]
[1723318272265,0.001832,61167.0,61164.0,0.081746]
[1723318272481,0.001832,61167.0,61164.0,0.084746]
[1723318272650,0.000832,61167.0,61164.0,0.084746]
[1723318273441,0.000832,61167.0,61164.0,0.081746]
[1723318273822,0.001832,61167.0,61164.0,0.081746]
[1723318274975,0.000832,61167.0,61164.0,0.081746]
[1723318275484,0.001832,61167.0,61164.0,0.081746]
[1723318276319,0.001832,61167.0,61165.0,0.13578161]
[1723318276486,0.001832,61167.0,61165.0,0.081745]
[1723318277945,0.000832,61167.0,61165.0,0.081745]
[1723318278321,0.001832,61167.0,61166.0,0.13578161]
[1723318278758,0.001832,61167.0,61166.0,0.62410361]
[1723318279106,0.001832,61167.0,61166.0,0.38101461]
[1723318279319,0.000832,61167.0,61166.0,0.13578161]
[1723318279550,0.306061,61167.0,61166.0,0.13578161]
[1723318279720,0.081746,61165.0,61160.0,0.081752]
[1723318279919,0.081746,61165.0,61161.0,0.13578905]
[1723318280140,0.081746,61165.0,61162.0,0.13578905]
[1723318280351,0.081746,61165.0,61155.0,0.0663]
[1723318280352,0.239647,61164.0,61163.0,0.13578905]
[1723318280550,0.239647,61164.0,61153.0,0.163522]
[1723318280551,0.081754,61159.0,61153.0,0.163522]
[1723318280724,0.081754,61159.0,61154.0,0.13580406]
[1723318280930,0.081754,61159.0,61155.0,0.13580406]
[1723318281134,0.081754,61159.0,61153.0,0.163522]
[1723318281336,0.081754,61159.0,61154.0,0.13580951]
[1723318281538,0.081754,61159.0,61155.0,0.13580951]
[1723318281742,0.141756,61157.0,61156.0,0.13580951]
[1723318282341,0.001,61159.0,61156.0,0.21756691]
[1723318282543,0.0776,61160.0,61156.0,0.081757]
[1723318282753,0.001,61159.0,61156.0,0.081757]
[1723318282922,0.001,61159.0,61157.0,0.27160646]
[1723318283103,0.081754,61159.0,61158.0,0.13580323]
[1723318283540,0.082754,61159.0,61158.0,0.13580323]
[1723318284378,0.083754,61159.0,61158.0,0.15669031]
[1723318284582,0.001,61159.0,61158.0,0.15669031]
[1723318284955,0.002,61159.0,61158.0,0.16369031]
[1723318285499,0.001,61159.0,61158.0,0.16369031]
[1723318285676,0.001,61159.0,61158.0,0.16969031]
[1723318286030,0.002,61159.0,61158.0,0.16969031]
[1723318286141,0.083754,61159.0,61158.0,0.16968915]
[1723318286347,0.083754,61159.0,61158.0,0.14880207]
[1723318287570,0.002,61159.0,61158.0,0.14880207]
[1723318289265,0.002,61159.0,61158.0,0.14971727]
[1723318290798,0.083754,61159.0,61158.0,0.14971727]
[1723318295945,0.083754,61159.0,61158.0,0.0139152]
[1723318296115,0.083754,61159.0,61158.0,0.14972037]
[1723318296116,0.002,61159.0,61158.0,0.14972037]
[1723318296326,0.002,61159.0,61158.0,0.23147537]
[1723318296725,0.002,61159.0,61158.0,0.14972037]
[1723318296953,0.002,61159.0,61158.0,0.21321755]
[1723318297287,0.002,61159.0,61158.0,0.29497255]
[1723318297490,0.002,61159.0,61158.0,0.21321755]
[1723318297892,0.002,61159.0,61158.0,0.21321175]
[1723318299378,0.002,61159.0,61158.0,0.29496675]
[1723318300436,0.002,61159.0,61158.0,0.29496664]
[1723318304860,0.002,61159.0,61158.0,0.29496643]
[1723318305470,0.001,61159.0,61158.0,0.28896643]
[1723318306811,0.08175,61162.0,61158.0,0.28196643]
[1723318307144,0.08175,61162.0,61159.0,0.13579623]
[1723318307347,0.08175,61162.0,61160.0,0.13579623]
[1723318307489,0.000832,61163.0,61161.0,0.13579585]
[1723318307697,0.000832,61163.0,61162.0,0.13579585]
[1723318307896,0.08258,61163.0,61162.0,0.13579585]
[1723318308091,0.000832,61163.0,61162.0,0.13579585]
[1723318308340,0.000832,61163.0,61162.0,0.21754585]
[1723318308551,0.000832,61163.0,61162.0,0.35604585]
[1723318308751,0.000832,61163.0,61162.0,0.51954585]
[1723318308972,0.001832,61163.0,61162.0,0.51954585]
[1723318309575,0.001832,61163.0,61162.0,0.76334585]
[1723318309927,0.002832,61163.0,61162.0,0.76334585]
[1723318310779,0.000832,61163.0,61162.0,0.76334585]
[1723318310977,0.000832,61163.0,61162.0,0.76934585]
[1723318311544,0.000832,61163.0,61162.0,0.93316077]
[1723318311743,0.000832,61163.0,61162.0,1.13968194]
[1723318311945,0.002832,61163.0,61162.0,1.20757202]
[1723318312141,0.002832,61163.0,61162.0,1.4174528]
[1723318312344,0.002832,61163.0,61162.0,1.49096862]
[1723318312544,0.002832,61163.0,61162.0,1.27014868]
[1723318312782,0.002832,61163.0,61162.0,0.92716077]
[1723318313150,0.001832,61163.0,61162.0,0.93416077]
[1723318313802,0.002832,61163.0,61162.0,0.94216077]
[1723318314221,0.001832,61163.0,61162.0,0.93416077]
[1723318314664,0.002832,61163.0,61162.0,0.80436492]
[1723318314945,0.002832,61163.0,61162.0,0.94014653]
[1723318315083,0.001832,61163.0,61162.0,0.93414653]
[1723318315282,0.001832,61163.0,61162.0,0.52653161]
[1723318315487,0.000832,61163.0,61162.0,0.13578161]
[1723318316329,0.000832,61163.0,61162.0,0.14378161]
[1723318316485,0.001832,61163.0,61162.0,0.14378161]
[1723318316686,0.08358,61163.0,61162.0,0.14378161]
[1723318316889,0.08358,61163.0,61158.0,0.0009152]
[1723318316890,0.406026,61163.0,61158.0,0.0009152]
[1723318317193,0.081754,61159.0,61158.0,0.0009152]
[1723318317426,0.081754,61159.0,61158.0,0.13672242]
[1723318317630,0.081754,61159.0,61158.0,0.0009152]
[1723318318282,0.081754,61159.0,61158.0,0.0019152]
[1723318318491,0.083754,61159.0,61158.0,0.0019152]
[1723318318910,0.002,61159.0,61158.0,0.0019152]
[1723318319072,0.002,61159.0,61158.0,0.13772229]
[1723318319435,0.002,61159.0,61158.0,0.13672229]
[1723318319898,0.005,61159.0,61158.0,0.13672229]
[1723318320281,0.005,61159.0,61158.0,0.36777729]
[1723318320698,0.005,61159.0,61158.0,0.2319702]
[1723318320885,0.005,61159.0,61158.0,0.36776788]
[1723318321086,0.005,61159.0,61158.0,0.53127788]
[1723318322619,0.002,61159.0,61158.0,0.53127788]
[1723318322769,0.002,61159.0,61158.0,0.53227788]
[1723318322965,0.002,61159.0,61158.0,0.69578788]
[1723318323327,0.000832,61163.0,61162.0,0.24525]
[1723318323666,0.000832,61163.0,61162.0,0.54454768]
[1723318323864,0.000832,61163.0,61162.0,0.38104768]
[1723318324069,0.000832,61163.0,61162.0,0.24525]
[1723318324421,0.000832,61163.0,61162.0,0.53033489]
[1723318324768,0.005832,61163.0,61162.0,0.53033489]
[1723318325263,0.00576572,61163.0,61162.0,0.53033489]
[1723318325865,0.00276572,61163.0,61162.0,0.53033489]
[1723318326669,0.00076572,61163.0,61162.0,0.53033489]
[1723318326873,0.00076572,61163.0,61162.0,0.69383489]
[1723318327086,0.00076572,61163.0,61162.0,0.85764435]
[1723318329387,0.00076572,61163.0,61162.0,0.38102943]
[1723318329649,0.00076572,61163.0,61162.0,0.21752943]
[1723318330216,0.00176572,61163.0,61162.0,0.22552943]
[1723318330633,0.00076572,61163.0,61162.0,0.38602943]
[1723318330798,0.00076572,61163.0,61162.0,0.14677943]
[1723318331000,0.00076572,61163.0,61162.0,0.14177943]
[1723318331001,0.00176572,61163.0,61162.0,0.14177943]
[1723318331404,0.00076572,61163.0,61162.0,0.13977943]
[1723318331719,0.00176572,61163.0,61162.0,0.22952943]
[1723318332672,0.00176572,61163.0,61162.0,0.22552943]
[1723318333158,0.00176572,61163.0,61162.0,0.23052943]
[1723318333368,0.00176572,61163.0,61162.0,0.14877943]
[1723318333518,0.00176572,61163.0,61162.0,0.13577943]
[1723318333519,0.22971372,61163.0,61162.0,0.13577943]
[1723318333739,0.39421072,61163.0,61162.0,0.006]
[1723318333947,0.39421072,61163.0,61162.0,0.008]
[1723318334128,0.39321072,61163.0,61162.0,0.002]
[1723318334325,0.39321072,61163.0,61162.0,0.004]
[1723318334731,0.39321072,61163.0,61162.0,0.002]
[1723318334971,0.08175,61162.0,61158.0,0.0009152]
[1723318335174,0.08175,61162.0,61159.0,0.13580305]
[1723318335348,0.08175,61162.0,61158.0,0.0009152]
[1723318335568,0.08175,61162.0,61159.0,0.13580305]
[1723318335765,0.08175,61162.0,61158.0,0.0009152]
[1723318335988,0.08175,61162.0,61159.0,0.13580285]
[1723318336129,0.08175,61162.0,61158.0,0.0009152]
[1723318336338,0.31246272,61163.0,61158.0,0.0009152]
[1723318336339,0.081751,61161.0,61159.0,0.13580285]
[1723318336545,0.081751,61161.0,61158.0,0.0009152]
[1723318336745,0.002,61162.0,61160.0,0.081752]
[1723318336951,0.002,61162.0,61158.0,0.0009152]
[1723318337162,0.002,61162.0,61159.0,0.13580042]
[1723318337364,0.003,61162.0,61160.0,0.13580022]
[1723318337564,0.003,61162.0,61161.0,0.13580022]
[1723318337784,0.08206572,61163.0,61161.0,0.13580022]
[1723318337978,0.00076572,61163.0,61158.0,0.0846692]
[1723318338235,0.00076572,61163.0,61159.0,0.21755441]
[1723318338444,0.00076572,61163.0,61160.0,0.13580041]
[1723318338764,0.00076572,61163.0,61161.0,0.13580041]
[1723318338974,0.00076572,61163.0,61162.0,0.30065041]
[1723318339255,0.00076572,61163.0,61162.0,0.62765041]
[1723318339610,0.00076572,61163.0,61162.0,0.46415041]
[1723318339807,0.00076572,61163.0,61162.0,0.38105041]
[1723318340633,0.00076572,61163.0,61162.0,0.38805041]
[1723318340836,0.00076572,61163.0,61162.0,0.38803767]
[1723318341070,0.00076572,61163.0,61162.0,0.55153767]
[1723318342052,0.00076572,61163.0,61162.0,0.70123767]
[1723318344163,0.00076572,61163.0,61162.0,0.70123717]
[1723318344549,0.00076572,61163.0,61162.0,0.56545]
[1723318344757,0.00076572,61163.0,61162.0,0.7012372]
[1723318345166,0.00076572,61163.0,61162.0,0.70123718]
[1723318345981,0.00076572,61163.0,61162.0,0.70123717]
[1723318351267,0.00076572,61163.0,61162.0,0.56545]
[1723318351493,0.00076572,61163.0,61162.0,0.70123209]
[1723318352495,0.00076572,61163.0,61162.0,0.53773209]
[1723318352811,0.00076572,61163.0,61162.0,0.38803209]
[1723318354807,0.00076572,61163.0,61162.0,0.38803111]
[1723318355235,0.00076572,61163.0,61162.0,0.25225]
[1723318355695,0.00076572,61163.0,61162.0,0.38803111]
[1723318356701,0.00076572,61163.0,61162.0,0.55153111]
[1723318356859,0.00076572,61163.0,61162.0,0.69113111]
[1723318358026,0.00076572,61163.0,61162.0,0.6911293]
[1723318358604,0.00076572,61163.0,61162.0,0.85494402]
[1723318360446,0.00076572,61163.0,61162.0,0.90394048]
[1723318361621,0.00076572,61163.0,61162.0,0.90485568]
[1723318365394,0.00076572,61163.0,61162.0,0.76907658]
[1723318365524,0.00076572,61163.0,61162.0,0.90485196]
[1723318365930,0.00076572,61163.0,61162.0,0.76907658]
[1723318366136,0.00076572,61163.0,61162.0,0.90485199]
[1723318366535,0.00076572,61163.0,61162.0,0.90485197]
[1723318367100,0.00076572,61163.0,61162.0,0.85585551]
[1723318367353,0.00076572,61163.0,61162.0,1.14966804]
[1723318369159,0.00076572,61163.0,61162.0,1.15004724]
[1723318369999,0.00076572,61163.0,61162.0,1.10101941]
[1723318372587,0.00076572,61163.0,61162.0,1.10105674]
[1723318373394,0.00076572,61163.0,61162.0,1.09405674]
[1723318373801,0.00076572,61163.0,61162.0,1.09905674]
[1723318374218,0.00076572,61163.0,61162.0,1.09405674]
[1723318374620,0.00176572,61163.0,61162.0,1.10605674]
[1723318375093,0.00176572,61163.0,61162.0,1.10205674]
[1723318375208,0.00276572,61163.0,61162.0,1.35430585]
[1723318375409,0.00276572,61163.0,61162.0,1.1845958]
[1723318375616,0.00176572,61163.0,61162.0,1.10205674]
[1723318375833,0.00176572,61163.0,61162.0,1.02347888]
[1723318376033,0.14366572,61163.0,61162.0,0.06993734]
[1723318376240,0.14366572,61163.0,61162.0,0.15669034]
[1723318376410,0.14266572,61163.0,61162.0,0.14869034]
[1723318376626,0.39399986,61163.0,61162.0,0.15969034]
[1723318377305,0.39299986,61163.0,61162.0,0.14869034]
[1723318377513,0.39299986,61163.0,61162.0,0.0129152]
[1723318377733,0.39299986,61163.0,61162.0,0.0109152]
[1723318377734,0.39399986,61163.0,61162.0,0.0109152]
[1723318378139,0.39499986,61163.0,61162.0,0.0219152]
[1723318378310,0.39399986,61163.0,61162.0,0.0109152]
[1723318378716,0.39299986,61163.0,61162.0,0.0069152]
[1723318379458,0.38791072,61163.0,61162.0,0.0009152]
[1723318379656,0.3929996,61163.0,61162.0,0.0009152]
[1723318379812,0.5614966,61163.0,61162.0,0.0009152]
[1723318380010,0.5614966,61163.0,61162.0,0.0059152]
[1723318380429,0.5614966,61163.0,61162.0,0.0009152]
[1723318380866,0.5684966,61163.0,61162.0,0.0019152]
[1723318381379,0.56149588,61163.0,61162.0,0.0009152]
[1723318381671,0.56549588,61163.0,61162.0,0.0019152]
[1723318381849,0.57349588,61163.0,61162.0,0.0029152]
[1723318382058,0.57349641,61163.0,61162.0,0.0029152]
[1723318384949,0.40999941,61163.0,61162.0,0.0029152]
[1723318385386,0.56840772,61163.0,61162.0,0.0029152]
[1723318385701,0.57349767,61163.0,61162.0,0.0029152]
[1723318385902,0.56840772,61163.0,61162.0,0.0029152]
[1723318386125,0.57349766,61163.0,61162.0,0.0029152]
[1723318386688,0.56840772,61163.0,61162.0,0.0029152]
[1723318387909,0.40491072,61163.0,61162.0,0.0029152]
[1723318388280,0.17491372,61163.0,61162.0,0.0029152]
[1723318388470,0.33841072,61163.0,61162.0,0.0029152]
[1723318390239,0.32141072,61163.0,61162.0,0.0009152]
[1723318390462,0.32141072,61163.0,61162.0,0.0019152]
[1723318390661,0.33041072,61163.0,61162.0,0.0019152]
[1723318391085,0.32241072,61163.0,61162.0,0.0009152]
[1723318391401,0.24601072,61163.0,61162.0,0.0009152]
[1723318392228,0.24601072,61163.0,61162.0,0.0019152]
[1723318393187,0.24101072,61163.0,61162.0,0.0019152]
[1723318393704,0.24101072,61163.0,61162.0,0.0009152]
[1723318394187,0.24201072,61163.0,61162.0,0.0009152]
[1723318394415,0.24401072,61163.0,61162.0,0.0009152]
[1723318394650,0.24301072,61163.0,61162.0,0.0009152]
[1723318395114,0.24401072,61163.0,61162.0,0.0009152]
[1723318395601,0.24101072,61163.0,61162.0,0.0009152]
[1723318395838,0.07851372,61163.0,61162.0,0.0009152]
[1723318395990,0.07934572,61163.0,61162.0,0.0009152]
[1723318396970,0.001832,61163.0,61162.0,0.0009152]
[1723318397103,0.001832,61163.0,61162.0,0.1430652]
[1723318397104,0.000832,61163.0,61162.0,0.1430652]
[1723318397305,0.000832,61163.0,61162.0,0.3065652]
[1723318397532,0.005832,61163.0,61162.0,0.52265911]
[1723318397784,0.005832,61163.0,61162.0,1.09567403]
[1723318397914,0.000832,61163.0,61162.0,1.09567403]
[1723318398255,0.005832,61163.0,61162.0,1.09567403]
[1723318398393,0.003832,61163.0,61162.0,1.09567403]
[1723318398599,0.000832,61163.0,61162.0,1.09567403]
[1723318398821,0.000832,61163.0,61162.0,1.09767403]
[1723318399022,0.000832,61163.0,61162.0,1.09867403]
[1723318399428,0.000832,61163.0,61162.0,1.09865094]
[1723318401225,0.000832,61163.0,61162.0,1.17653283]
[1723318401579,0.000832,61163.0,61162.0,1.20153283]
[1723318401931,0.000832,61163.0,61162.0,1.19853283]
[1723318402359,0.000832,61163.0,61162.0,1.20053283]
[1723318402764,0.000832,61163.0,61162.0,1.13263882]
[1723318402961,0.000832,61163.0,61162.0,1.20051817]
[1723318403306,0.000832,61163.0,61162.0,1.27388207]
[1723318403507,0.000832,61163.0,61162.0,1.26088207]
[1723318403810,0.000832,61163.0,61162.0,1.27488207]
[1723318403924,0.000832,61163.0,61162.0,1.27388207]
[1723318404123,0.000832,61163.0,61162.0,1.28788207]
[1723318404483,0.001832,61163.0,61162.0,1.21451817]
[1723318404722,0.001832,61163.0,61162.0,1.27388207]
[1723318404868,0.000832,61163.0,61162.0,1.27388207]
[1723318405076,0.001832,61163.0,61162.0,1.20051817]
[1723318405482,0.001832,61163.0,61162.0,1.26339667]
[1723318405659,0.001832,61163.0,61162.0,1.14663882]
[1723318406466,0.000832,61163.0,61162.0,0.99688012]
[1723318406667,0.001832,61163.0,61162.0,1.13264481]
[1723318407008,0.001832,61163.0,61162.0,1.26339812]
[1723318407207,0.000832,61163.0,61162.0,1.24939812]
[1723318407432,0.001832,61163.0,61162.0,1.26339812]
[1723318407793,0.001832,61163.0,61162.0,1.2633872]
[1723318408056,0.001832,61163.0,61162.0,1.26338693]
[1723318408259,0.001832,61163.0,61162.0,1.26338663]
[1723318408537,0.001832,61163.0,61162.0,1.1955069]
[1723318411146,0.001832,61163.0,61162.0,1.19549057]
[1723318411361,0.001832,61163.0,61162.0,1.14663959]
[1723318413496,0.001832,61163.0,61162.0,1.1466394]
[1723318414079,0.001832,61163.0,61162.0,0.8798394]
[1723318414283,0.001832,61163.0,61162.0,0.7144394]
[1723318414486,0.001832,61163.0,61162.0,0.24642448]
[1723318414872,0.001832,61163.0,61162.0,0.16467448]
[1723318415458,0.062832,61163.0,61162.0,0.16467448]
[1723318415651,0.061832,61163.0,61162.0,0.23242448]
[1723318415865,0.000832,61163.0,61162.0,0.23742448]
[1723318415983,0.000832,61163.0,61162.0,0.40092448]
[1723318416186,0.000832,61163.0,61162.0,0.38192448]
[1723318416611,0.000832,61163.0,61162.0,0.38992448]
[1723318416875,0.000832,61163.0,61162.0,0.38492448]
[1723318417079,0.000832,61163.0,61162.0,0.2521652]
[1723318417224,0.000832,61163.0,61162.0,0.38794951]
[1723318417433,0.000832,61163.0,61162.0,0.2491652]
[1723318417635,0.000832,61163.0,61162.0,0.38494949]
[1723318417839,0.000832,61163.0,61162.0,0.38194949]
[1723318418208,0.000832,61163.0,61162.0,0.38694949]
[1723318418413,0.000832,61163.0,61162.0,0.52904949]
[1723318418817,0.000832,61163.0,61162.0,0.72558012]
[1723318419023,0.000832,61163.0,61162.0,0.86136095]
[1723318419434,0.000832,61163.0,61162.0,0.55576095]
[1723318419702,0.142232,61163.0,61162.0,0.55076095]
[1723318419874,0.142232,61163.0,61162.0,0.22344603]
[1723318420082,0.143232,61163.0,61162.0,0.22444603]
[1723318420458,0.144232,61163.0,61162.0,0.23144603]
[1723318420662,0.144232,61163.0,61162.0,0.23144994]
[1723318421281,0.144232,61163.0,61162.0,0.39494994]
[1723318421662,0.083232,61163.0,61162.0,0.39494994]
[1723318422066,0.002832,61163.0,61162.0,0.39494994]
[1723318422676,0.002832,61163.0,61162.0,0.47524994]
[1723318423014,0.002832,61163.0,61162.0,1.10816486]
[1723318423160,0.002832,61163.0,61162.0,1.13116486]
[1723318423817,0.000832,61163.0,61162.0,1.11816486]
[1723318424021,0.001832,61163.0,61162.0,1.12516486]
[1723318424200,0.001832,61163.0,61162.0,1.1919276]
[1723318424463,0.001832,61163.0,61162.0,1.1849276]
[1723318424464,0.000832,61163.0,61162.0,1.1849276]
[1723318424643,0.001832,61163.0,61162.0,1.1959276]
[1723318425181,0.001832,61163.0,61162.0,1.2059276]
[1723318425396,0.001832,61163.0,61162.0,1.38282786]
[1723318425598,0.001832,61163.0,61162.0,1.37282786]
[1723318425887,0.001832,61163.0,61162.0,1.50712786]
[1723318426400,0.000832,61163.0,61162.0,1.82932744]
[1723318426611,0.000832,61163.0,61162.0,1.93259932]
[1723318426835,0.000832,61163.0,61162.0,1.92059932]
[1723318427031,0.000832,61163.0,61162.0,1.92859932]
[1723318427475,0.000832,61163.0,61162.0,1.94859932]
[1723318427648,0.000832,61163.0,61162.0,1.94930304]
[1723318427792,0.000832,61163.0,61162.0,1.93530304]
[1723318427995,0.000832,61163.0,61162.0,1.85342559]
[1723318428196,0.000832,61163.0,61162.0,1.93530182]
[1723318428397,0.000832,61163.0,61162.0,1.94930182]
[1723318429412,0.000832,61163.0,61162.0,1.91326651]
[1723318429635,0.000832,61163.0,61162.0,1.8992584]